bitfinex/quotes_SOLUSD_20250219
["timestamp","ask_amount","ask_price","bid_price","bid_amount"]
[1739944497738,90.66783115,167.04,166.99,0.03]
[1739944498314,82.763,167.04,166.99,7.93483115]
[1739944499435,0.063,167.04,167.0,7.90483115]
[1739944499629,0.063,167.04,167.01,5.9876]
[1739944499835,0.063,167.04,167.01,13.89243115]
[1739944501626,0.063,167.04,167.02,7.90483115]
[1739944503142,0.063,167.04,167.02,13.89203115]
[1739944505914,0.063,167.04,167.03,7.90483115]
[1739944510061,0.063,167.04,167.03,13.89173115]
[1739944511429,0.0001,167.05,167.03,27.30357968]
[1739944511630,0.0001,167.05,167.04,7.90483115]
[1739944512054,0.0001,167.05,167.04,147.45870428]
[1739944512350,0.0001,167.05,167.04,148.45870428]
[1739944512735,0.063,167.14,167.07,20.0]
[1739944513044,0.063,167.14,167.12,7.90483115]
[1739944513228,0.063,167.14,167.11,7.90483115]
[1739944513429,0.063,167.14,167.1,7.90483115]
[1739944514360,0.063,167.14,167.1,13.88903115]
[1739944515949,0.063,167.14,167.11,7.90483115]
[1739944516156,0.063,167.14,167.12,7.90483115]
[1739944518036,0.063,167.14,167.13,5.9833]
[1739944518654,0.063,167.14,167.13,13.88813115]
[1739944519258,0.063,167.14,167.13,7.90483115]
[1739944519471,0.063,167.14,167.12,7.90483115]
[1739944520643,0.063,167.14,167.12,13.88843115]
[1739944520867,0.063,167.14,167.13,7.90483115]
[1739944521564,0.063,167.14,167.13,21.31667968]
[1739944521737,0.03,167.17,167.16,20.0]
[1739944521935,0.03,167.17,167.16,27.90483115]
[1739944522437,0.0001,167.17,167.16,42.31667968]
[1739944522677,0.0001,167.17,167.16,56.28647968]
[1739944523341,0.0001,167.17,167.16,275.48647968]
[1739944523863,0.0001,167.17,167.16,276.48647558]
[1739944524479,0.063,167.21,167.2,27.90483115]
[1739944524764,0.063,167.21,167.2,119.19310151]
[1739944526666,0.063,167.21,167.2,99.19310151]
[1739944528041,0.063,167.21,167.2,80.9]
[1739944528543,0.063,167.21,167.13,93.21230151]
[1739944528544,12.37530151,167.21,167.13,93.21230151]
[1739944528753,12.31230151,167.19,167.13,12.31230151]
[1739944529070,12.31230151,167.18,167.12,12.31230151]
[1739944529762,12.31230151,167.18,167.13,5.9833]
[1739944530151,95.01230151,167.17,167.11,32.31230151]
[1739944530533,12.31230151,167.16,167.11,20.0]
[1739944531665,82.7,167.17,167.12,12.31230151]
[1739944531847,82.7,167.17,167.13,5.9833]
[1739944532443,95.01230151,167.17,167.11,32.31230151]
[1739944532645,95.01230151,167.17,167.12,5.9836]
[1739944533467,12.31230151,167.16,167.11,20.0]
[1739944533671,12.31230151,167.16,167.08,177.4533]
[1739944533672,12.31230151,167.13,167.08,94.98]
[1739944533876,12.31230151,167.13,167.08,100.965]
[1739944534246,12.31230151,167.14,167.08,113.27730151]
[1739944534442,82.7,167.15,167.1,12.31230151]
[1739944535552,99.59230151,167.19,167.12,12.31230151]
[1739944535770,12.31230151,167.19,167.14,5.983]
[1739944535948,95.01230151,167.2,167.14,18.29530151]
[1739944536152,82.7,167.2,167.15,12.31230151]
[1739944536369,95.01230151,167.2,167.14,18.29530151]
[1739944536557,12.31230151,167.18,167.14,5.983]
[1739944537873,12.31230151,167.18,167.12,12.31230151]
[1739944538175,12.31230151,167.18,167.13,5.9833]
[1739944538347,12.31230151,167.19,167.13,18.29560151]
[1739944540163,82.7,167.2,167.11,5.984]
[1739944540343,12.31230151,167.19,167.13,12.31230151]
[1739944541570,12.31230151,167.19,167.14,5.983]
[1739944541772,95.01230151,167.2,167.14,5.983]
[1739944542871,0.03,167.19,167.14,5.983]
[1739944543850,0.03,167.19,167.14,18.29530151]
[1739944545465,0.03,167.19,167.17,12.31230151]
[1739944546393,0.063,167.31,167.2,71.9999959]
[1739944546561,9.35574074,167.39,167.37,1.0]
[1739944546759,37.42296296,167.42,167.4,20.0]
[1739944547076,37.42296296,167.42,167.4,63.47404095]
[1739944547287,37.42296296,167.42,167.4,58.03645155]
[1739944547479,8.148e-05,167.41,167.4,59.03645155]
[1739944547675,8.148e-05,167.41,167.4,58.03645155]
[1739944548184,8.148e-05,167.41,167.4,138.93645155]
[1739944548383,8.148e-05,167.41,167.4,139.93645155]
[1739944548581,8.148e-05,167.41,167.4,160.57187231]
[1739944548787,70.73316189,167.53,167.4,160.57187231]
[1739944548991,70.73316189,167.53,167.46,19.64316189]
[1739944550286,51.09,167.53,167.47,19.64316189]
[1739944550491,19.64316189,167.56,167.49,19.64316189]
[1739944550787,19.64316189,167.55,167.48,19.64316189]
[1739944550988,19.64316189,167.54,167.47,19.64316189]
[1739944551290,19.64316189,167.53,167.47,19.64316189]
[1739944551489,19.64316189,167.52,167.46,19.64316189]
[1739944551790,19.64316189,167.53,167.46,19.64316189]
[1739944552694,19.64316189,167.52,167.46,19.64316189]
[1739944553260,19.64316189,167.51,167.44,19.64316189]
[1739944553662,19.64316189,167.51,167.45,19.64316189]
[1739944553886,39.64316189,167.52,167.45,19.64316189]
[1739944556497,19.64316189,167.51,167.45,19.64316189]
[1739944556868,19.64316189,167.5,167.43,19.64316189]
[1739944557869,70.73316189,167.5,167.43,19.64316189]
[1739944558200,19.64316189,167.49,167.43,19.64316189]
[1739944559777,19.64316189,167.49,167.43,25.61576189]
[1739944559977,76.70326189,167.5,167.43,25.61576189]
[1739944560291,19.64316189,167.49,167.43,25.61576189]
[1739944560915,70.73316189,167.49,167.43,19.64316189]
[1739944561191,19.64316189,167.48,167.41,19.64316189]
[1739944561393,51.09,167.49,167.41,19.64316189]
[1739944561394,19.64316189,167.47,167.41,19.64316189]
[1739944561581,19.64316189,167.48,167.41,19.64316189]
[1739944562295,19.64316189,167.46,167.4,19.64316189]
[1739944562695,36.32869018,167.47,167.4,19.64316189]
[1739944563007,16.68552829,167.47,167.42,19.64316189]
[1739944564511,16.68552829,167.47,167.41,19.64316189]
[1739944564680,42.29999018,167.47,167.41,19.64316189]
[1739944564877,42.29999018,167.47,167.4,19.64316189]
[1739944565407,19.64316189,167.46,167.4,19.64316189]
[1739944565612,42.29999018,167.47,167.41,19.64316189]
[1739944566314,42.29999018,167.47,167.4,25.61656189]
[1739944566814,36.32869018,167.46,167.36,95.8375]
[1739944566999,19.64316189,167.44,167.4,0.063]
[1739944567185,19.64316189,167.43,167.4,0.063]
[1739944567391,16.68552829,167.46,167.4,19.70616189]
[1739944567698,19.64316189,167.46,167.4,0.063]
[1739944567881,25.61476189,167.46,167.4,0.063]
[1739944568684,18.25817977,167.46,167.4,0.063]
[1739944569511,12.28657977,167.46,167.4,0.063]
[1739944569886,18.25817977,167.46,167.4,0.063]
[1739944570281,20.0,167.37,167.29,80.9]
[1739944570508,12.28657977,167.34,167.27,12.28657977]
[1739944570701,16.68552829,167.36,167.26,5.9787]
[1739944570702,12.28657977,167.33,167.26,18.26527977]
[1739944570902,12.28657977,167.34,167.27,12.28657977]
[1739944571506,12.28657977,167.35,167.28,12.28657977]
[1739944571711,16.68552829,167.36,167.31,12.28657977]
[1739944571902,12.28657977,167.39,167.32,12.28657977]
[1739944572782,12.28657977,167.38,167.32,12.28657977]
[1739944573319,12.28657977,167.38,167.32,5.9762]
[1739944574092,16.68552829,167.42,167.36,12.28657977]
[1739944574320,16.68552829,167.42,167.37,12.28657977]
[1739944574496,34.94510806,167.42,167.35,12.28657977]
[1739944575793,34.94510806,167.42,167.34,18.26207977]
[1739944575995,12.28657977,167.41,167.34,18.26207977]
[1739944576725,12.28657977,167.38,167.32,80.9]
[1739944577103,12.28657977,167.39,167.32,99.16297977]
[1739944577308,12.28657977,167.39,167.32,93.18657977]
[1739944577925,12.28657977,167.39,167.32,99.16307977]
[1739944579204,12.28657977,167.38,167.32,80.9]
[1739944580217,12.28657977,167.38,167.32,86.9394]
[1739944582321,18.26057977,167.39,167.32,86.9394]
[1739944583030,12.28657977,167.38,167.32,86.9394]
[1739944586427,18.26067977,167.39,167.32,99.22597977]
[1739944588228,18.26067977,167.39,167.32,86.9394]
[1739944589330,18.26107977,167.38,167.32,80.963]
[1739944589635,12.28657977,167.36,167.32,0.063]
[1739944590130,5.9745,167.38,167.32,0.063]
[1739944590131,12.28657977,167.34,167.32,0.063]
[1739944590514,12.28657977,167.35,167.32,0.063]
[1739944591639,12.28657977,167.34,167.32,0.063]
[1739944592930,18.26227977,167.35,167.32,0.063]
[1739944593230,12.28657977,167.34,167.32,0.063]
[1739944597631,18.26227977,167.35,167.32,0.063]
[1739944597804,18.26167977,167.36,167.32,0.063]
[1739944601040,12.28657977,167.35,167.32,0.063]
[1739944601543,5.9758,167.34,167.32,0.063]
[1739944602938,18.26237977,167.34,167.32,0.063]
[1739944603326,5.9758,167.34,167.32,0.063]
[1739944603527,18.26207977,167.35,167.32,0.063]
[1739944605435,12.28657977,167.34,167.32,0.063]
[1739944606734,7.87459121,167.34,167.32,0.063]
[1739944607345,7.87459121,167.33,167.32,0.063]
[1739944609145,13.85079121,167.33,167.32,0.063]
[1739944610849,5.9762,167.33,167.32,0.063]
[1739944611038,7.87459121,167.33,167.32,0.063]
[1739944611948,13.85079121,167.33,167.32,0.063]
[1739944612343,7.87459121,167.33,167.32,0.063]
[1739944612845,12.30637287,167.33,167.32,0.063]
[1739944613532,18.28187287,167.35,167.32,0.063]
[1739944614143,5.9755,167.35,167.32,0.063]
[1739944614645,28.99190116,167.36,167.32,0.063]
[1739944614826,16.68552829,167.36,167.32,0.063]
[1739944615028,18.28137287,167.37,167.32,0.063]
[1739944615524,18.28077287,167.38,167.32,0.063]
[1739944616449,12.30637287,167.38,167.32,12.36937287]
[1739944617053,18.28087287,167.38,167.32,12.36937287]
[1739944620254,12.30637287,167.37,167.32,0.063]
[1739944620438,12.30637287,167.36,167.32,0.063]
[1739944620751,5.9745,167.38,167.32,0.063]
[1739944620752,12.30637287,167.35,167.32,0.063]
[1739944621052,12.30637287,167.36,167.32,0.063]
[1739944621253,12.30637287,167.37,167.32,0.063]
[1739944621930,12.30637287,167.35,167.32,0.063]
[1739944622533,12.30637287,167.36,167.32,0.063]
[1739944623949,12.30637287,167.35,167.32,0.063]
[1739944625224,18.28197287,167.35,167.32,0.063]
[1739944626359,12.30637287,167.34,167.32,0.063]
[1739944627161,18.28227287,167.34,167.32,0.063]
[1739944627734,12.30637287,167.33,167.32,0.063]
[1739944632669,12.30637287,167.34,167.32,0.063]
[1739944633134,5.9755,167.35,167.32,0.063]
[1739944633135,18.28187287,167.35,167.32,0.063]
[1739944634655,13.84920357,167.35,167.32,0.063]
[1739944635445,7.87370357,167.34,167.32,0.063]
[1739944635948,5.9755,167.35,167.32,0.063]
[1739944636155,7.87370357,167.34,167.32,0.063]
[1739944636354,27.87370357,167.33,167.32,0.063]
[1739944637860,7.87370357,167.33,167.32,0.063]
[1739944638335,13.84990357,167.33,167.32,0.063]
[1739944639853,7.87370357,167.28,167.25,80.99447923]
[1739944640057,7.87370357,167.28,167.25,0.09447923]
[1739944640239,7.87370357,167.29,167.25,6.07337923]
[1739944640864,7.87370357,167.29,167.25,0.09447923]
[1739944641068,7.87370357,167.3,167.25,0.09447923]
[1739944641264,7.87370357,167.29,167.25,0.09447923]
[1739944641941,7.87370357,167.29,167.25,80.99447923]
[1739944642146,16.68552829,167.34,167.28,7.87370357]
[1739944642355,5.9756,167.35,167.3,7.87370357]
[1739944642668,7.87370357,167.37,167.3,7.87370357]
[1739944642669,5.9752,167.36,167.3,7.87370357]
[1739944643037,13.84850357,167.37,167.3,7.87370357]
[1739944643243,16.68552829,167.39,167.33,7.87370357]
[1739944643565,7.90370357,167.4,167.34,7.87370357]
[1739944644261,13.87740357,167.4,167.34,7.87370357]
[1739944644568,6.0037,167.4,167.33,12.29684746]
[1739944644754,12.29684746,167.37,167.32,1.665]
[1739944646277,12.29684746,167.38,167.32,1.665]
[1739944646465,12.29684746,167.38,167.32,13.96184746]
[1739944647383,12.29684746,167.38,167.32,1.665]
[1739944648377,12.29684746,167.38,167.32,7.6415]
[1739944648553,12.29684746,167.38,167.32,19.93834746]
[1739944648878,18.27134746,167.38,167.32,19.93834746]
[1739944649478,18.27134746,167.38,167.32,13.96184746]
[1739944650977,18.27134746,167.38,167.32,1.665]
[1739944651272,12.29684746,167.37,167.32,1.665]
[1739944652550,34.95647575,167.39,167.33,12.29684746]
[1739944653497,28.98237575,167.39,167.33,12.29684746]
[1739944653781,18.30054746,167.4,167.33,18.27284746]
[1739944654283,12.29684746,167.39,167.33,18.27284746]
[1739944654654,18.27094746,167.39,167.33,12.29684746]
[1739944655467,18.30054746,167.4,167.33,12.29684746]
[1739944658583,12.29684746,167.39,167.32,94.86184746]
[1739944658783,6.0037,167.4,167.34,12.29684746]
[1739944658784,0.03,167.4,167.34,12.29684746]
[1739944658965,0.03,167.4,167.39,13.89054746]
[1739944660402,0.03,167.4,167.39,19.86454746]
[1739944662503,0.03,167.4,167.39,100.76454746]
[1739944662796,0.03,167.4,167.39,264.77324345]
[1739944662981,0.03,167.47,167.45,12.29684746]
[1739944663186,0.03,167.47,167.46,12.29684746]
[1739944663381,0.03,167.47,167.45,12.29684746]
[1739944664687,0.03,167.47,167.44,6.3057]
[1739944664869,0.03,167.47,167.42,7.85907858]
[1739944666281,0.03,167.47,167.43,7.85907858]
[1739944667707,0.03,167.47,167.42,7.85907858]
[1739944667877,0.03,167.47,167.4,92.8857]
[1739944667878,7.85907858,167.45,167.4,80.9]
[1739944668084,7.85907858,167.45,167.39,9.45277858]
[1739944668278,7.85907858,167.46,167.4,7.85907858]
[1739944669207,24.57460687,167.47,167.41,7.85907858]
[1739944669386,24.57460687,167.47,167.43,7.85907858]
[1739944669387,16.71552829,167.47,167.43,7.85907858]
[1739944671398,0.03,167.47,167.43,7.85907858]
[1739944672113,0.03,167.47,167.43,13.83147858]
[1739944672410,0.03,167.47,167.45,7.85907858]
[1739944673815,0.03,167.47,167.44,5.9719]
[1739944674004,0.03,167.47,167.45,7.85907858]
[1739944676023,0.03,167.47,167.43,93.2546]
[1739944676024,0.03,167.47,167.43,88.75907858]
[1739944678089,0.03,167.47,167.43,94.73157858]
[1739944678418,0.03,167.47,167.45,7.85907858]
[1739944678621,0.03,167.47,167.43,80.9]
[1739944681730,0.03,167.47,167.43,88.75907858]
[1739944682127,0.03,167.47,167.43,80.9]
[1739944682328,7.85907858,167.46,167.4,7.92207858]
[1739944682629,13.83117858,167.45,167.4,0.063]
[1739944683417,7.85907858,167.44,167.4,0.063]
[1739944684734,22.65782829,167.44,167.4,0.063]
[1739944684939,7.85907858,167.41,167.4,0.063]
[1739944686055,13.83237858,167.41,167.4,0.063]
[1739944686421,28.84172711,167.41,167.32,80.9]
[1739944686722,7.85907858,167.37,167.3,7.85907858]
[1739944686922,7.85907858,167.36,167.3,80.9]
[1739944687138,7.85907858,167.35,167.29,7.85907858]
[1739944687442,7.85907858,167.35,167.28,94.73707858]
[1739944687812,7.85907858,167.35,167.28,7.85907858]
[1739944688016,7.85907858,167.36,167.3,7.85907858]
[1739944688712,12.30147699,167.36,167.3,12.30147699]
[1739944688937,12.30147699,167.36,167.27,18.6129]
[1739944688938,12.30147699,167.35,167.29,12.30147699]
[1739944689115,12.30147699,167.36,167.3,12.30147699]
[1739944689812,12.30147699,167.37,167.31,12.30147699]
[1739944690833,34.96140528,167.38,167.31,12.30147699]
[1739944691049,16.68552829,167.38,167.32,12.30147699]
[1739944691212,16.68552829,167.38,167.32,18.27787699]
[1739944692038,16.68552829,167.38,167.34,12.30147699]
[1739944692234,34.96070528,167.4,167.34,12.30147699]
[1739944693037,12.30147699,167.39,167.32,12.30147699]
[1739944693632,12.30147699,167.39,167.33,12.30147699]
[1739944694838,18.27567699,167.39,167.33,12.30147699]
[1739944695136,12.30147699,167.39,167.33,12.30147699]
[1739944696338,18.27557699,167.39,167.33,12.30147699]
[1739944696838,18.27557699,167.39,167.32,12.30147699]
[1739944697654,12.30147699,167.36,167.3,12.30147699]
[1739944698831,18.27617699,167.37,167.3,18.27857699]
[1739944700861,18.27617699,167.37,167.31,12.30147699]
[1739944701155,16.68552829,167.38,167.33,12.30147699]
[1739944701650,16.68552829,167.38,167.32,12.36447699]
[1739944702453,16.68552829,167.38,167.33,5.9762]
[1739944702958,34.96150528,167.38,167.32,12.36447699]
[1739944703159,34.96150528,167.38,167.32,0.063]
[1739944703458,12.30147699,167.37,167.32,0.063]
[1739944703641,12.30147699,167.36,167.32,0.063]
[1739944704746,12.30147699,167.35,167.32,0.063]
[1739944705746,18.27627699,167.37,167.32,0.063]
[1739944706155,5.9748,167.37,167.32,0.063]
[1739944706563,18.27627699,167.37,167.32,0.063]
[1739944707250,22.66072829,167.36,167.32,0.063]
[1739944707562,12.30147699,167.35,167.32,0.063]
[1739944708450,34.96220528,167.36,167.32,0.063]
[1739944708635,30.5339786,167.36,167.32,0.063]
[1739944710139,16.68552829,167.36,167.32,0.063]
[1739944710373,16.68552829,167.36,167.33,7.87325031]
[1739944711488,16.68552829,167.36,167.33,13.84935031]
[1739944712148,16.68552829,167.36,167.33,7.87325031]
[1739944712659,16.68552829,167.36,167.32,13.91275031]
[1739944712966,5.9745,167.38,167.32,13.91275031]
[1739944713268,13.84775031,167.38,167.32,6.0395]
[1739944713644,7.87325031,167.38,167.32,6.0395]
[1739944713975,13.84765031,167.38,167.32,6.0395]
[1739944714147,13.84765031,167.38,167.32,0.063]
[1739944714351,7.87325031,167.37,167.32,0.063]
[1739944714550,7.87325031,167.36,167.32,0.063]
[1739944714746,7.87325031,167.35,167.32,0.063]
[1739944715744,13.84895031,167.35,167.32,0.063]
[1739944716578,13.84895031,167.35,167.29,79.837]
[1739944716753,7.87325031,167.34,167.29,79.837]
[1739944716960,7.87325031,167.33,167.29,79.837]
[1739944717356,7.87325031,167.34,167.27,13.85145031]
[1739944717969,5.9762,167.33,167.27,13.85145031]
[1739944718557,24.5587786,167.32,167.26,27.87325031]
[1739944718755,16.68552829,167.31,167.26,27.87325031]
[1739944718980,16.68552829,167.31,167.27,7.87325031]
[1739944719962,16.68552829,167.31,167.27,13.85145031]
[1739944720976,16.68552829,167.31,167.27,7.87325031]
[1739944721155,16.68552829,167.31,167.26,33.85185031]
[1739944723064,16.68552829,167.31,167.25,7.87325031]
[1739944723263,30.5357786,167.31,167.25,7.87325031]
[1739944724363,7.87325031,167.3,167.24,13.85265031]
[1739944724980,7.87325031,167.3,167.25,0.063]
[1739944725478,30.5357786,167.31,167.25,0.063]
[1739944728083,13.85055031,167.3,167.25,0.063]
[1739944728386,7.87325031,167.29,167.25,0.063]
[1739944728956,7.87325031,167.28,167.25,0.063]
[1739944729279,24.5587786,167.29,167.25,0.063]
[1739944730572,30.5365786,167.29,167.25,0.063]
[1739944731077,16.68552829,167.29,167.25,7.93625031]
[1739944731285,16.68552829,167.29,167.27,7.87325031]
[1739944732162,16.68552829,167.29,167.27,13.85135031]
[1739944732379,16.68552829,167.29,167.27,7.87325031]
[1739944732583,16.68552829,167.29,167.25,13.91525031]
[1739944733074,16.68552829,167.29,167.26,7.87325031]
[1739944733870,16.68552829,167.31,167.26,7.87325031]
[1739944734069,16.68552829,167.31,167.28,5.978]
[1739944736874,16.71552829,167.31,167.28,5.978]
[1739944739890,16.71552829,167.31,167.25,0.063]
[1739944739891,6.0069,167.31,167.26,7.87325031]
[1739944740186,7.90325031,167.31,167.25,13.91515031]
[1739944740366,0.03,167.31,167.25,13.91515031]
[1739944740567,0.03,167.31,167.26,7.87325031]
[1739944741176,0.03,167.31,167.25,0.063]
[1739944741493,7.87325031,167.3,167.25,0.063]
[1739944742188,7.90325031,167.31,167.25,0.063]
[1739944742506,13.88045031,167.31,167.25,0.063]
[1739944743486,7.87325031,167.29,167.25,0.063]
[1739944744301,7.87325031,167.3,167.25,0.063]
[1739944744880,13.85055031,167.3,167.25,0.063]
[1739944745079,7.87325031,167.3,167.25,0.063]
[1739944745390,13.85045031,167.3,167.25,0.063]
[1739944745599,16.68552829,167.29,167.25,0.063]
[1739944752001,24.5587786,167.29,167.26,20.0]
[1739944752208,30.5363786,167.29,167.26,20.0]
[1739944753202,30.5363786,167.29,167.25,0.063]
[1739944753395,30.5363786,167.29,167.25,20.063]
[1739944753905,16.68552829,167.28,167.25,0.063]
[1739944755912,16.68552829,167.28,167.25,6.042]
[1739944756508,24.5587786,167.28,167.25,0.063]
[1739944757608,30.5368786,167.28,167.25,0.063]
[1739944758812,7.87325031,167.27,167.25,0.063]
[1739944759207,37.97062713,167.26,167.25,0.063]
[1739944759414,21.28509884,167.26,167.25,0.063]
[1739944761617,27.26379884,167.26,167.25,0.063]
[1739944763296,1.0,167.24,167.23,0.063]
[1739944763505,22.28509884,167.24,167.23,0.063]
[1739944764509,26.88509884,167.24,167.23,0.063]
[1739944764821,32.86449884,167.24,167.23,0.063]
[1739944772087,32.86449884,167.24,167.15,0.063]
[1739944772088,20.0,167.2,167.15,0.063]
[1739944772290,7.87325031,167.16,167.15,0.063]
[1739944773505,7.87325031,167.17,167.15,0.063]
[1739944774107,18.45505031,167.18,167.15,0.063]
[1739944774312,7.87325031,167.17,167.15,0.063]
[1739944777123,4.6,167.18,167.15,0.063]
[1739944777499,82.7,167.21,167.15,7.93625031]
[1739944777694,82.7,167.21,167.17,7.87325031]
[1739944778100,12.47325031,167.23,167.18,13.85465031]
[1739944778101,87.3,167.23,167.18,13.85465031]
[1739944778300,90.57325031,167.27,167.2,7.87325031]
[1739944778607,82.7,167.26,167.22,7.87325031]
[1739944779018,82.7,167.28,167.23,7.87325031]
[1739944779903,90.57325031,167.28,167.22,7.87325031]
[1739944780234,82.7,167.28,167.23,7.87325031]
[1739944780605,82.7,167.28,167.24,9.51235031]
[1739944780825,0.03,167.29,167.25,7.87325031]
[1739944781132,0.03,167.29,167.28,7.87325031]
[1739944781634,0.03,167.29,167.26,6.5694]
[1739944781635,0.03,167.29,167.27,7.87325031]
[1739944782309,0.03,167.29,167.28,7.87325031]
[1739944783403,0.03,167.29,167.28,13.85125031]
[1739944784732,0.03,167.31,167.3,39.85434853]
[1739944784922,0.03,167.31,167.3,80.11676536]
[1739944785735,0.03,167.4,167.3,80.11676536]
[1739944785916,0.03,167.4,167.36,7.87325031]
[1739944786125,13.87695031,167.4,167.31,79.837]
[1739944786310,7.87325031,167.39,167.33,7.87325031]
[1739944786510,13.87695031,167.4,167.34,7.87325031]
[1739944786715,7.87325031,167.39,167.33,7.87325031]
[1739944787037,0.03,167.4,167.35,7.87325031]
[1739944787915,0.03,167.4,167.36,7.87325031]
[1739944788114,0.03,167.4,167.39,34.07615031]
[1739944788332,0.03,167.4,167.39,113.91315031]
[1739944788709,0.03,167.4,167.39,119.88715031]
[1739944789430,0.03,167.4,167.39,133.29899884]
[1739944789937,0.03,167.4,167.39,119.88715031]
[1739944790637,0.0001,167.4,167.39,136.57557028]
[1739944791214,0.0001,167.4,167.39,149.98741881]
[1739944791917,0.0001,167.4,167.39,124.29473514]
[1739944792128,0.0001,167.4,167.39,127.31400628]
[1739944793714,0.0001,167.4,167.39,124.29473514]
[1739944794050,0.0001,167.4,167.36,98.09293514]
[1739944794349,0.0001,167.4,167.38,12.28083514]
[1739944798046,0.0001,167.4,167.37,12.28083514]
[1739944798552,0.0001,167.4,167.38,12.28083514]
[1739944798735,0.0001,167.4,167.37,12.28083514]
[1739944800156,0.0001,167.4,167.37,18.25553514]
[1739944800657,0.0001,167.4,167.38,12.28083514]
[1739944800836,0.0001,167.4,167.39,12.28083514]
[1739944801156,0.0001,167.4,167.39,13.83673514]
[1739944801449,0.0001,167.4,167.39,12.28083514]
[1739944801622,0.0001,167.4,167.38,12.28083514]
[1739944802127,0.0001,167.4,167.39,12.28083514]
[1739944802327,0.0001,167.4,167.38,12.28083514]
[1739944802732,0.0001,167.4,167.39,12.28083514]
[1739944803632,0.0001,167.4,167.39,92.11783514]
[1739944803938,0.0001,167.4,167.39,18.25483514]
[1739944804140,0.0001,167.4,167.37,79.837]
[1739944804752,0.0001,167.4,167.37,85.8116]
[1739944805061,0.0001,167.4,167.39,12.28083514]
[1739944805363,0.0001,167.4,167.38,12.28083514]
[1739944805958,0.0001,167.4,167.37,98.09243514]
[1739944806953,12.28083514,167.38,167.33,79.837]
[1739944807159,12.28083514,167.37,167.32,5.9764]
[1739944807356,12.28083514,167.37,167.31,99.82413514]
[1739944807730,12.28083514,167.39,167.32,12.28083514]
[1739944807933,4.6001,167.4,167.35,12.28083514]
[1739944808161,16.88093514,167.4,167.34,12.28083514]
[1739944808459,12.28083514,167.39,167.33,12.28083514]
[1739944808760,18.25493514,167.39,167.33,12.28083514]
[1739944809065,22.85463514,167.4,167.34,12.28083514]
[1739944809362,4.6001,167.4,167.34,12.28083514]
[1739944809566,0.0001,167.4,167.37,12.28083514]
[1739944809745,0.0001,167.4,167.38,12.28083514]
[1739944809947,0.0001,167.4,167.37,12.28083514]
[1739944810268,0.0001,167.4,167.35,12.28083514]
[1739944811570,12.28093514,167.4,167.34,12.28083514]
[1739944812059,12.28093514,167.4,167.33,224.1131]
[1739944812060,12.28083514,167.39,167.33,236.39393514]
[1739944812271,12.28083514,167.39,167.33,98.09393514]
[1739944812439,18.25483514,167.39,167.33,98.09393514]
[1739944812638,12.28093514,167.4,167.33,98.09393514]
[1739944812941,12.28093514,167.4,167.34,12.28083514]
[1739944813270,0.0001,167.4,167.37,12.28083514]
[1739944813433,0.0001,167.4,167.38,12.28083514]
[1739944813638,0.0001,167.4,167.37,12.28083514]
[1739944813865,0.0001,167.4,167.35,12.28083514]
[1739944814034,18.25463514,167.4,167.34,12.28083514]
[1739944814367,18.25463514,167.4,167.34,18.25653514]
[1739944814560,18.25463514,167.4,167.34,12.28083514]
[1739944814867,18.25463514,167.4,167.33,98.09393514]
[1739944815160,18.25463514,167.4,167.34,12.28083514]
[1739944816262,0.0001,167.4,167.34,18.25653514]
[1739944816645,0.0001,167.4,167.34,13.84409728]
[1739944817151,0.0001,167.4,167.35,7.86839728]
[1739944818044,0.0001,167.4,167.36,7.86839728]
[1739944818245,0.0001,167.4,167.35,7.86839728]
[1739944819954,0.0001,167.4,167.35,7.93139728]
[1739944820666,7.86839728,167.38,167.35,0.063]
[1739944821046,90.56839728,167.39,167.35,0.063]
[1739944821478,1.6017,167.4,167.35,0.063]
[1739944821775,1.6017,167.4,167.35,7.93139728]
[1739944822553,1.6017,167.4,167.35,13.90669728]
[1739944824672,0.0001,167.4,167.35,13.90669728]
[1739944827770,0.0001,167.4,167.35,7.93139728]
[1739944828858,7.86849728,167.4,167.35,0.063]
[1739944829059,5.974,167.39,167.35,0.063]
[1739944831149,13.84229728,167.4,167.35,0.063]